bitfinex-derivatives/quotes_SOLF0:USTF0_20251023
["timestamp","ask_amount","ask_price","bid_price","bid_amount"]
[1761221239259,4.1462012,187.06,186.92,2.69]
[1761221239650,4.1462012,187.06,186.93,2.69]
[1761221240458,4.1462012,187.06,186.93,7.5036]
[1761221241160,4.1462012,187.06,186.93,2.69]
[1761221241747,4.8107,187.05,186.93,2.69]
[1761221242464,4.1462012,187.06,186.93,2.69]
[1761221243261,8.9568012,187.06,186.98,4.8123]
[1761221243863,4.1462012,187.06,186.98,4.8123]
[1761221244658,4.1462012,187.06,186.96,2.69]
[1761221245462,4.1462012,187.06,186.98,4.8123]
[1761221245659,8.9568012,187.06,186.98,4.8123]
[1761221246059,8.9568012,187.06,186.96,7.5029]
[1761221246560,8.9568012,187.06,186.96,4.8129]
[1761221246561,4.1462012,187.06,186.96,4.8129]
[1761221246966,4.1462012,187.06,186.97,4.8126]
[1761221247565,4.8108,187.05,186.97,4.8126]
[1761221248862,1.63090839,187.02,186.97,4.8126]
[1761221249859,1.63090839,187.02,186.95,4.8131]
[1761221250063,1.63090839,187.0,186.96,2.91]
[1761221250363,1.63090839,187.0,186.95,7.7231]
[1761221251064,1.63090839,187.0,186.96,7.7228]
[1761221251366,61.86,187.08,186.96,2.91]
[1761221251668,1.63090839,187.03,186.98,4.8123]
[1761221251967,6.40718701,187.18,187.0,2.91]
[1761221252168,1.63090839,187.07,187.0,7.7219]
[1761221252866,4.15127965,187.1,187.0,7.7219]
[1761221253965,4.8101,187.08,187.0,7.7219]
[1761221255566,4.8103,187.07,187.0,2.91]
[1761221256670,4.8103,187.07,187.0,7.7218]
[1761221257271,8.74744537,187.09,187.01,2.91]
[1761221257475,4.8098,187.09,187.01,2.91]
[1761221258165,4.8098,187.09,187.02,4.8112]
[1761221258671,3.93748822,187.1,187.02,7.7212]
[1761221258873,3.93748822,187.12,187.02,7.7212]
[1761221259063,4.8098,187.09,187.02,7.7212]
[1761221259458,4.8098,187.09,187.03,4.8111]
[1761221261467,3.93748822,187.12,187.03,2.91]
[1761221261673,3.93748822,187.15,187.03,2.91]
[1761221262169,4.809,187.12,187.05,4.8106]
[1761221263269,4.8085,187.14,187.05,2.91]
[1761221263474,3.93748822,187.15,187.05,2.91]
[1761221263771,4.15127965,187.18,187.05,2.91]
[1761221263973,4.809,187.12,187.05,7.7206]
[1761221266677,3.93748822,187.14,186.98,13.77607965]
[1761221266678,3.93748822,187.14,187.03,4.8111]
[1761221266879,8.4005594,187.14,187.03,4.8111]
[1761221267076,24.4405594,187.14,187.03,4.8111]
[1761221267272,4.15127965,187.11,187.03,4.8111]
[1761221267770,8.08876787,187.11,187.03,4.8111]
[1761221267970,8.74708822,187.1,187.03,7.7211]
[1761221268168,3.93748822,187.1,187.04,2.91]
[1761221268478,8.40970802,187.13,187.04,2.91]
[1761221268674,3.93748822,187.12,187.04,2.91]
[1761221269073,8.74648822,187.12,187.05,4.8106]
[1761221269279,3.93748822,187.11,187.05,7.7206]
[1761221270282,3.93748822,187.11,187.06,2.91]
[1761221270485,3.93748822,187.1,186.98,2.91]
[1761221270780,3.93748822,187.09,186.98,2.91]
[1761221271083,3.93748822,187.08,186.98,2.91]
[1761221271284,3.93748822,187.07,186.98,2.91]
[1761221271475,3.93748822,187.08,186.98,2.91]
[1761221271782,3.93748822,187.07,186.98,2.91]
[1761221272082,4.8103,187.07,187.0,4.8118]
[1761221272378,3.93748822,187.06,187.0,4.8118]
[1761221273882,8.74778822,187.07,187.0,4.8118]
[1761221274180,3.93748822,187.06,187.02,2.91]
[1761221274379,8.42733496,187.09,187.02,2.91]
[1761221274570,3.93748822,187.08,187.02,2.91]
[1761221274771,2.54667165,187.08,186.95,2.54667165]
[1761221274975,2.54667165,187.08,186.96,2.91]
[1761221275281,11.29415987,187.08,187.01,2.91]
[1761221275482,3.93748822,187.07,187.01,2.91]
[1761221276478,8.74778822,187.07,187.01,2.91]
[1761221277278,8.74778822,187.07,187.01,7.7216]
[1761221278983,3.93748822,187.06,187.02,2.88]
[1761221279378,4.8103,187.07,187.02,2.88]
[1761221279784,13.24658854,187.07,187.02,2.88]
[1761221279983,3.93748822,187.06,187.02,2.88]
[1761221280283,3.93748822,187.08,186.97,2.88]
[1761221280784,8.43678727,187.09,186.97,2.88]
[1761221280983,3.93748822,187.08,186.97,2.88]
[1761221281287,3.93748822,187.08,187.0,2.88]
[1761221281477,8.43678727,187.08,187.0,2.88]
[1761221281878,13.24678727,187.08,187.02,4.8114]
[1761221282075,8.43716255,187.07,186.97,2.88]
[1761221282280,3.93748822,187.07,186.97,2.88]
[1761221282482,3.93748822,187.07,186.92,45.78]
[1761221282483,10.77014075,187.06,186.93,2.88]
[1761221282684,8.43685655,187.05,186.93,2.88]
[1761221282882,45.78,187.04,186.93,2.88]
[1761221283083,4.8118,187.01,186.94,4.8134]
[1761221283385,8.43624769,187.02,186.94,4.8134]
[1761221283574,3.93748822,187.01,186.94,4.8134]
[1761221283772,45.78,187.03,186.94,4.8134]
[1761221283977,4.8121,187.0,186.94,4.8134]
[1761221284785,4.85382548,187.07,186.95,2.88]
[1761221284986,13.34611266,187.08,186.95,2.88]
[1761221285183,6.83265253,187.06,186.95,64.88]
[1761221285386,15.67966717,187.06,186.89,2.88]
[1761221285692,8.49228718,187.05,186.89,2.88]
[1761221286078,4.8113,187.03,186.94,2.88]
[1761221286584,13.30358718,187.03,186.94,2.88]
[1761221286786,8.80478916,187.02,186.95,4.8132]
[1761221287084,3.99318916,187.01,186.94,2.88]
[1761221287281,4.8121,187.0,186.93,4.8137]
[1761221287491,52.61265253,187.02,186.9,2.88]
[1761221287682,8.49190246,187.01,186.9,2.88]
[1761221287884,8.49190246,187.01,186.89,4.8147]
[1761221288186,6.83265253,186.98,186.89,4.8147]
[1761221288384,4.8131,186.96,186.87,7.6952]
[1761221288586,6.83265253,186.98,186.87,2.88]
[1761221288784,3.98990244,186.97,186.87,2.88]
[1761221288982,3.98990244,186.97,186.83,2.88]
[1761221289188,6.83265253,186.94,186.83,2.88]
[1761221289384,52.61265253,186.94,186.75,2.88]
[1761221289682,6.83265253,186.9,186.75,2.88]
[1761221289883,45.78,186.92,186.75,2.88]
[1761221290082,3.98289269,186.91,186.75,2.88]
[1761221290386,45.78,186.92,186.82,2.88]
[1761221291089,50.5943,186.92,186.83,4.8162]
[1761221292090,4.8143,186.92,186.83,4.8162]
[1761221292292,4.8136,186.94,186.84,4.8159]
[1761221292488,33.04,186.96,186.85,2.88]
[1761221292990,11.64515253,186.98,186.87,4.8151]
[1761221293193,49.75381366,186.97,186.87,2.88]
[1761221293381,45.78,186.97,186.87,2.88]
[1761221293692,16.04,187.04,186.9,2.88]
[1761221293693,6.83265253,187.02,186.9,2.88]
[1761221293897,3.97321686,187.01,186.9,2.88]
[1761221294993,8.78511686,187.01,186.9,2.88]
[1761221295487,8.78511686,187.01,186.92,7.694]
[1761221295682,8.78511686,187.01,186.92,2.88]
[1761221295887,8.78511686,187.01,186.84,2.88]
[1761221296083,8.78511686,187.01,186.91,4.8141]
[1761221296994,6.83265253,186.98,186.85,2.88]
[1761221297196,3.96887828,186.97,186.85,2.88]
[1761221297590,4.8134,186.95,186.86,4.8154]
[1761221297792,50.6134,186.95,186.85,2.88]
[1761221298188,45.8,186.96,186.86,7.6954]
[1761221298390,45.8,186.96,186.87,2.88]
[1761221299589,50.6129,186.97,186.88,4.8149]
[1761221299790,50.6129,186.97,186.88,7.6949]
[1761221299995,50.6129,186.97,186.88,2.88]
[1761221300991,50.6129,186.97,186.89,7.6946]
[1761221301286,50.6123,186.99,186.89,2.88]
[1761221301691,4.8127,186.98,186.89,7.6947]
[1761221302100,4.8127,186.98,186.89,2.88]
[1761221302898,4.85382548,187.06,186.89,2.88]
[1761221303196,45.8,187.02,186.95,4.8131]
[1761221303393,52.63265253,187.02,186.87,2.88]
[1761221303601,3.96756787,187.01,186.87,2.88]
[1761221304394,4.8124,186.99,186.9,4.8144]
[1761221304898,50.6124,186.99,186.87,2.88]
[1761221305300,4.8127,186.98,186.91,4.8141]
[1761221309705,4.8121,187.0,186.92,4.8138]
[1761221309905,50.6121,187.0,186.92,4.8138]
[1761221311516,50.6121,187.0,186.83,62.0]
[1761221311517,50.6121,187.0,186.93,7.6136]
[1761221311723,50.6121,187.0,186.94,2.8]
[1761221311920,45.8,187.0,186.94,2.8]
[1761221312221,45.8,187.0,186.92,2.8]
[1761221312914,45.8,187.0,186.93,4.8136]
[1761221313315,45.8,187.0,186.93,7.6136]
[1761221313920,45.8,187.0,186.94,4.8134]
[1761221314118,45.8,187.0,186.95,2.8]
[1761221314323,50.6121,187.0,186.95,2.8]
[1761221316319,50.6121,187.0,186.92,4.814]
[1761221316624,50.6121,187.0,186.92,2.8]
[1761221317523,50.6121,187.0,186.94,4.8134]
[1761221317726,50.6121,187.0,186.95,2.8]
[1761221318023,45.8,187.0,186.91,2.8]
[1761221318622,4.8124,186.99,186.93,4.8136]
[1761221319011,4.8124,186.99,186.93,7.6136]
[1761221320225,4.8127,186.98,186.91,4.8141]
[1761221320423,3.99287254,186.99,186.91,4.8141]
[1761221321217,3.99287254,186.99,186.93,2.8]
[1761221321525,45.8,187.0,186.93,2.8]
[1761221322230,3.99581354,186.99,186.93,2.8]
[1761221322724,2.54988425,186.97,186.93,2.8]
[1761221323126,45.8,187.0,186.82,45.78]
[1761221323127,2.54988425,186.94,186.82,2.8]
[1761221323427,2.54988425,186.92,186.82,2.8]
[1761221323621,2.54988425,186.92,186.89,7.6147]
[1761221323823,2.54988425,186.92,186.9,2.8]
[1761221324329,4.8134,186.95,186.9,7.6144]
[1761221324629,2.54988425,186.94,186.9,4.8144]
[1761221324830,2.54988425,186.94,186.91,2.8]
[1761221325917,3.99794302,186.97,186.91,2.8]
[1761221326233,2.54988425,186.96,186.91,7.6141]
[1761221326428,6.54782727,186.96,186.91,7.6141]
[1761221326619,6.54782727,186.96,186.93,2.8]
[1761221326820,6.54782727,186.98,186.89,2.8]
[1761221327130,45.78,187.0,186.89,2.8]
[1761221327131,2.54988425,186.95,186.89,2.8]
[1761221327328,2.54988425,186.95,186.91,4.8141]
[1761221328221,2.54988425,186.95,186.89,7.6147]
[1761221328430,6.54782727,186.95,186.89,7.6147]
[1761221328628,6.54782727,186.95,186.89,2.8]
[1761221329126,6.54782727,186.95,186.9,4.8144]
[1761221329535,11.36122727,186.95,186.9,4.8144]
[1761221329736,7.36328425,186.95,186.9,4.8144]
[1761221330334,4.0052549,186.94,186.9,4.8144]
[1761221330937,1.63253495,186.91,186.9,4.8144]
[1761221331440,1.63253495,186.93,186.91,2.8]
[1761221331832,1.63253495,186.93,186.9,4.8144]
[1761221332134,4.85382548,186.99,186.84,62.0]
[1761221332135,1.63253495,186.91,186.88,4.815]
[1761221332434,1.63253495,186.89,186.88,4.815]
[1761221332936,1.63253495,186.89,186.86,7.6154]
[1761221333534,1.63253495,186.89,186.87,4.8152]
[1761221333731,4.00569136,186.93,186.87,7.6152]
[1761221333929,4.00569136,186.94,186.87,2.8]
[1761221334127,1.63253495,186.9,186.87,2.8]
[1761221334333,1.63253495,186.9,186.88,7.6149]
[1761221336035,4.00569136,186.94,186.89,4.8147]
[1761221336242,1.63253495,186.93,186.9,2.8]
[1761221336541,1.63253495,186.93,186.9,7.6144]
[1761221338536,4.00569136,186.96,186.92,2.8]
[1761221338737,1.63253495,186.96,186.92,2.8]
[1761221339143,4.85382548,187.0,186.88,1.63253495]
[1761221339144,4.00569136,186.99,186.95,2.84]
[1761221339337,1.63253495,186.98,186.95,2.84]
[1761221340034,1.63253495,186.98,186.96,4.8128]
[1761221341146,4.00569136,187.0,186.98,4.8124]
[1761221341347,1.63253495,187.0,186.98,7.6524]
[1761221341845,1.63253495,187.0,186.99,2.84]
[1761221342147,1.63253495,187.02,187.0,4.8118]
[1761221342644,1.63253495,187.02,187.0,7.6518]
[1761221342946,1.63253495,187.04,187.0,7.6518]
[1761221343143,1.63253495,187.04,187.01,4.8115]
[1761221343543,4.00569136,187.05,187.01,7.6515]
[1761221343740,1.63253495,187.06,187.01,7.6515]
[1761221344645,4.00569136,187.08,187.02,2.84]
[1761221344845,1.63253495,187.05,187.02,2.84]
[1761221345247,1.63253495,187.03,187.01,4.8115]
[1761221345446,1.63253495,187.03,186.99,4.8121]
[1761221345748,1.63253495,187.03,186.99,7.6521]
[1761221345947,1.63253495,187.05,187.01,2.84]
[1761221346551,1.63253495,187.05,187.0,4.8118]
[1761221346849,1.63253495,187.05,187.0,7.6518]
[1761221347247,1.63253495,187.05,187.01,2.84]
[1761221347443,1.63253495,187.03,187.0,4.8118]
[1761221347854,1.63253495,187.05,187.01,4.8115]
[1761221348048,1.63253495,187.05,187.01,7.6515]
[1761221348749,4.00569136,187.09,187.02,1.63253495]
[1761221348952,1.63253495,187.11,187.04,2.84]
[1761221349341,1.63253495,187.11,187.05,4.8105]
[1761221351048,106.99959695,187.12,187.07,2.84]
[1761221351350,108.6321319,187.12,187.07,2.84]
[1761221351553,106.99959695,187.12,187.08,7.6497]
[1761221351948,106.99959695,187.12,187.09,2.84]
[1761221352646,20.89382548,187.22,187.09,2.84]
[1761221352852,1.63253495,187.17,187.13,2.84]
[1761221354554,1.63253495,187.15,187.1,7.6493]
[1761221355254,1.63253495,187.15,187.11,2.84]
[1761221355753,1.63253495,187.13,187.08,7.6498]
[1761221355952,1.63253495,187.13,187.09,2.84]
[1761221356349,1.63253495,187.11,187.05,4.47253495]
[1761221356745,1.63253495,187.11,187.06,2.84]
[1761221357351,4.02556036,187.19,187.06,2.84]
[1761221357651,1.63253495,187.12,187.06,2.84]
[1761221358055,1.63253495,187.12,187.06,7.6503]
[1761221358852,8.50837185,187.2,187.08,2.84]
[1761221359058,1.63253495,187.14,187.08,2.84]
[1761221359355,1.63253495,187.16,187.1,2.84]
[1761221359959,1.63253495,187.16,187.12,2.84]
[1761221362353,1.63253495,187.15,187.12,2.84]
[1761221362759,1.63253495,187.15,187.13,2.84]
[1761221363461,1.63253495,187.15,187.12,4.8087]
[1761221363661,1.63253495,187.15,187.12,7.6487]
[1761221363863,1.63253495,187.15,187.13,2.84]
[1761221364064,4.8069,187.2,187.13,7.6485]
[1761221364263,1.63253495,187.17,187.13,7.6485]
[1761221364558,1.63253495,187.17,187.09,1.63253495]
[1761221364764,1.63253495,187.17,187.11,2.84]
[1761221364964,1.63253495,187.15,187.11,2.84]
[1761221365562,1.63253495,187.15,187.12,4.8088]
[1761221366158,4.8077,187.17,187.11,2.84]
[1761221366357,1.63253495,187.13,187.11,2.84]
[1761221366760,1.63253495,187.13,187.11,7.649]
[1761221367564,1.63253495,187.13,187.12,2.84]
[1761221367764,1.63253495,187.14,187.12,2.84]
[1761221368756,3.99821272,187.22,187.12,7.6488]
[1761221368960,1.63253495,187.15,187.12,4.8088]
[1761221369468,1.63253495,187.15,187.12,7.5888]
[1761221369767,1.63253495,187.17,187.13,2.78]
[1761221371062,1.63253495,187.17,187.11,2.88]
[1761221372067,1.63253495,187.17,187.14,2.88]
[1761221372961,1.63253495,187.17,187.14,4.8083]
[1761221373169,1.63253495,187.15,187.12,2.88]
[1761221373560,4.8069,187.2,187.12,7.6887]
[1761221373764,1.63253495,187.17,187.12,2.88]
[1761221374163,1.63253495,187.17,187.12,7.6888]
[1761221374362,1.63253495,187.17,187.13,2.88]
[1761221374872,1.63253495,187.15,187.13,2.88]
[1761221376772,4.8074,187.18,187.13,2.88]
[1761221376773,1.63253495,187.16,187.13,2.88]
[1761221385782,5.60007755,187.16,187.13,2.88]
[1761221385978,1.63253495,187.14,187.13,2.88]
[1761221386488,1.63253495,187.14,187.11,4.809]
[1761221386680,1.63253495,187.14,187.12,2.88]
[1761221390285,1.63253495,187.14,187.03,9.6223]
[1761221390286,1.63253495,187.14,187.07,2.88]
[1761221390482,1.63253495,187.12,187.07,2.88]
[1761221391088,1.63253495,187.1,187.01,2.88]
[1761221391388,1.63253495,187.07,187.01,2.88]
[1761221391791,1.63253495,187.09,187.01,2.88]
[1761221392888,3.9675426,187.1,187.01,2.88]
[1761221393701,3.9675426,187.1,187.07,2.88]
[1761221393988,8.59917002,187.12,187.07,2.88]
[1761221394295,3.9675426,187.11,187.07,2.88]
[1761221394594,3.9675426,187.13,187.07,2.88]
[1761221394793,3.9675426,187.12,187.07,2.88]
[1761221394993,3.9675426,187.13,187.09,2.88]
[1761221395198,3.9675426,187.12,187.09,2.88]
[1761221395393,3.9675426,187.13,187.09,2.88]
[1761221396298,6.51386177,187.14,187.03,2.88]
[1761221396490,3.9675426,187.13,187.03,2.88]
[1761221397095,4.809,187.12,187.07,4.81]
[1761221397294,2.54631917,187.11,187.03,2.88]
[1761221397592,3.9675426,187.12,186.96,2.88]
[1761221397593,2.54631917,187.08,186.96,2.88]
[1761221397997,11.14619302,187.11,186.99,2.88]
[1761221398298,11.14619302,187.11,187.0,2.88]
[1761221398299,8.59987385,187.1,187.0,2.88]
[1761221398492,3.9675426,187.1,187.0,2.88]
[1761221398693,2.54631917,187.11,187.0,2.88]
[1761221398997,11.32316177,187.11,187.0,2.73]
[1761221399296,8.59898094,187.1,187.0,2.73]
[1761221399989,8.59898094,187.1,187.05,7.5406]
[1761221400294,8.59898094,187.1,187.06,2.73]
[1761221400496,8.59898094,187.1,187.05,4.8106]
[1761221400694,8.59898094,187.1,187.01,2.73]
[1761221400899,3.9675426,187.1,187.01,2.73]
[1761221401194,2.54631917,187.1,187.01,2.73]
[1761221401794,2.54631917,187.1,187.06,2.73]
[1761221401992,6.51386177,187.1,187.06,2.73]
[1761221402186,8.59923283,187.1,187.07,4.81]
[1761221402488,2.54631917,187.14,187.08,2.73]
[1761221402693,6.54557464,187.14,187.07,4.81]
[1761221403096,11.17578013,187.14,187.07,4.81]
[1761221403396,3.99925547,187.13,187.07,4.81]
[1761221403986,4.809,187.12,187.07,4.81]
[1761221404191,4.809,187.12,187.07,7.54]
[1761221404402,8.62946096,187.12,187.08,2.73]
[1761221404592,3.99925547,187.11,187.08,2.73]
[1761221404901,2.54631917,187.14,187.08,2.73]
[1761221405100,6.54557464,187.14,187.08,2.73]
[1761221405997,11.35407464,187.14,187.08,7.5398]
[1761221406196,8.62840549,187.13,187.08,7.5398]
[1761221406593,4.85382548,187.19,187.1,2.73]
[1761221406799,3.99843101,187.18,187.1,2.73]
[1761221406993,8.62710157,187.19,187.1,2.73]
[1761221407297,8.80593101,187.18,187.11,4.809]
[1761221407498,4.62867056,187.17,187.11,4.809]
[1761221407698,8.62710157,187.17,187.11,4.809]
[1761221408097,13.43480157,187.17,187.11,4.809]
[1761221408300,8.62710157,187.16,187.11,7.539]
[1761221408610,8.62710157,187.16,187.12,7.5388]
[1761221408906,64.20631917,187.23,187.12,7.5388]
[1761221408907,4.85382548,187.2,187.13,2.73]
[1761221409110,8.62748917,187.22,187.13,2.73]
[1761221409410,3.99893738,187.21,187.16,2.73]
[1761221409604,3.99893738,187.25,187.19,2.73]
[1761221409805,8.62755331,187.25,187.19,2.73]
[1761221411304,8.62755331,187.25,187.14,2.54631917]
[1761221411508,8.62755331,187.25,187.15,2.73]
[1761221412111,8.62755331,187.25,187.07,45.6]
[1761221412112,8.62755331,187.25,187.18,2.73]
[1761221412305,3.99921143,187.25,187.18,2.73]
[1761221412710,3.99921143,187.25,187.21,2.73]
[1761221412910,45.62,187.26,187.21,2.73]
[1761221413414,4.8039,187.32,187.23,5.27631917]
[1761221414000,13.41780739,187.32,187.23,5.27631917]
[1761221414206,8.61390739,187.31,187.23,5.27631917]
[1761221415215,8.61390739,187.31,187.24,4.8056]
[1761221415915,8.61390739,187.31,187.24,7.5356]
[1761221416314,3.99319512,187.31,187.24,7.5356]
[1761221416703,4.8039,187.32,187.24,7.5356]
[1761221416909,3.99319512,187.33,187.25,2.73]
[1761221417207,3.99319512,187.33,187.14,9.58]
[1761221417208,45.6,187.35,187.28,7.5345]
[1761221417518,4.8027,187.37,187.29,2.73]
[1761221419213,4.802,187.39,187.3,2.73]
[1761221419608,2.54631917,187.36,187.3,2.73]
[1761221419816,2.54631917,187.33,187.23,2.73]
[1761221420116,2.54631917,187.33,187.23,7.5359]
[1761221420414,2.54631917,187.33,187.24,2.73]
[1761221420613,2.54631917,187.33,187.26,4.8051]
[1761221420816,2.54631917,187.36,187.27,2.73]
[1761221421207,2.54631917,187.36,187.28,4.8046]
[1761221421414,2.54631917,187.36,187.29,2.73]
[1761221423117,7.34921917,187.36,187.29,2.73]
[1761221424216,48.12631917,187.41,187.32,2.73]
[1761221424413,2.54631917,187.4,187.32,2.73]
[1761221424921,2.54631917,187.37,187.29,4.8044]
[1761221425224,2.54631917,187.37,187.3,2.73]
[1761221425707,2.54631917,187.37,187.3,4.8041]
[1761221425910,4.85382548,187.46,187.22,62.0]
[1761221425911,15.72579772,187.47,187.31,2.7]
[1761221426107,2.54631917,187.43,187.31,2.7]
[1761221426310,15.72579772,187.47,187.33,2.7]
[1761221426311,7.34681917,187.45,187.33,2.7]
[1761221426514,2.54631917,187.45,187.36,7.5025]
[1761221427210,2.54631917,187.45,187.24,9.6113]
[1761221427211,2.54631917,187.39,187.25,2.7]
[1761221427417,2.54631917,187.39,187.27,2.7]
[1761221427611,7.34841917,187.39,187.31,4.8038]
[1761221427816,7.34841917,187.39,187.32,2.7]
[1761221428014,4.8021,187.39,187.32,2.7]
[1761221428218,2.54631917,187.37,187.28,2.7]
[1761221428714,2.54631917,187.37,187.31,2.66]
[1761221429531,2.54631917,187.37,187.27,2.66]
[1761221430034,2.54631917,187.34,187.27,2.66]
[1761221430326,2.54631917,187.34,187.25,7.4654]
[1761221430625,2.54631917,187.31,187.25,7.4654]
[1761221431326,4.804,187.32,187.25,7.4654]
[1761221432018,2.54631917,187.33,187.26,7.4651]
[1761221432530,2.54631917,187.33,187.27,2.66]
[1761221432726,2.54631917,187.33,187.27,7.4649]
[1761221433225,2.54631917,187.33,187.23,2.66]
[1761221433534,2.54631917,187.27,187.2,75.6248189]
[1761221434230,7.35151917,187.27,187.2,78.2848189]
[1761221434426,7.35151917,187.27,187.21,2.66]
[1761221435738,2.54631917,187.27,187.21,2.66]
[1761221436031,2.54631917,187.32,187.22,2.66]
[1761221437031,4.8041,187.31,187.24,7.4656]
[1761221437426,2.54631917,187.32,187.2,137.6248189]
[1761221437427,2.54631917,187.32,187.2,78.2848189]
[1761221437729,2.54631917,187.32,187.21,2.66]
[1761221439035,4.8044,187.3,187.22,4.8063]
[1761221439231,4.8044,187.3,187.22,7.4663]
[1761221439434,4.8044,187.3,187.23,2.66]
[1761221439730,4.8044,187.3,187.23,7.4659]
[1761221440130,2.54631917,187.26,187.17,7.4674]
[1761221440431,2.54631917,187.25,187.18,2.66]
[1761221440741,6.82085506,187.28,187.18,2.66]
[1761221441825,9.6063,187.35,187.13,62.0]
[1761221441826,6.82085506,187.31,187.19,7.4669]
[1761221442332,16.04,187.32,187.19,2.66]
[1761221442638,4.8046,187.29,187.21,7.4664]
[1761221442933,4.8046,187.29,187.21,2.66]
[1761221444029,6.82085506,187.34,187.14,2.66]
[1761221444030,4.8049,187.28,187.14,2.66]
[1761221444236,24.54908872,187.33,187.14,2.66]
[1761221444533,24.55181359,187.32,187.14,2.66]
[1761221444736,8.51181359,187.31,187.14,2.66]
[1761221444938,4.8054,187.26,187.19,4.8069]
[1761221445435,3.91359746,187.31,187.13,45.5]
[1761221445636,4.8048,187.29,187.22,7.4662]
[1761221447328,3.91359746,187.33,187.23,7.4659]
[1761221447329,4.8041,187.31,187.23,7.4659]
[1761221447529,3.91359746,187.32,187.23,7.4659]
[1761221447729,3.91359746,187.34,187.23,7.4659]
[1761221448928,4.8044,187.3,187.23,7.4659]
[1761221452037,8.73737136,187.3,187.23,7.4659]
[1761221452343,4.8044,187.3,187.23,7.4659]
[1761221453050,4.8044,187.3,187.24,2.66]
[1761221453645,4.8044,187.3,187.24,7.4657]
[1761221454052,8.74027353,187.32,187.24,2.66]
[1761221454238,8.74027353,187.32,187.26,4.8051]
[1761221454239,3.93647353,187.31,187.26,4.8051]
[1761221454438,3.93647353,187.31,187.27,2.66]
[1761221454747,4.8038,187.32,187.27,2.66]
[1761221456249,45.5,187.37,187.22,2.66]
[1761221456250,50.35382548,187.37,187.22,2.66]
[1761221456444,3.94726271,187.36,187.26,2.66]
[1761221456646,3.94726271,187.41,187.34,4.8031]
[1761221456951,8.41290158,187.41,187.34,4.8031]
[1761221457146,4.8018,187.4,187.34,4.8031]
[1761221457450,13.21470158,187.4,187.34,4.8031]
[1761221457642,3.94726271,187.39,187.34,7.4631]
[1761221457845,8.74906271,187.4,187.34,7.4631]
[1761221458145,4.8018,187.4,187.34,7.4631]
[1761221458544,13.21361543,187.4,187.34,7.4631]
[1761221458744,3.94726271,187.39,187.35,2.63]
[1761221459149,3.94726271,187.41,187.35,7.4329]
[1761221459652,3.94726271,187.41,187.35,4.8029]
[1761221459853,8.74846271,187.43,187.37,2.63]
[1761221460047,3.94726271,187.42,187.37,2.63]
[1761221460253,45.48,187.45,187.35,2.63]
[1761221460449,108.0398964,187.5,187.38,2.63]
[1761221460751,8.40052917,187.49,187.42,7.4311]
[1761221460950,50.31382548,187.54,187.43,2.63]
[1761221461247,8.40081737,187.53,187.43,2.63]
[1761221461453,4.13897702,187.49,187.37,2.63]
[1761221461652,8.9928025,187.49,187.37,2.63]
[1761221461848,4.46450889,187.48,187.37,2.63]
[1761221462040,8.40081737,187.49,187.37,2.63]
[1761221462239,3.92616888,187.48,187.37,2.63]
[1761221462448,4.7998,187.48,187.39,2.63]
[1761221462641,13.23332069,187.51,187.39,2.63]
[1761221462841,4.13897702,187.48,187.39,2.63]
[1761221463347,3.92616888,187.48,187.39,2.63]
[1761221463550,8.37817097,187.51,187.39,2.63]
[1761221463945,4.8001,187.47,187.39,7.4317]
[1761221464342,25.0328025,187.52,187.39,2.63]
[1761221464343,8.0651459,187.49,187.39,2.63]
[1761221464542,3.92616888,187.48,187.36,2.63]
[1761221464748,4.8007,187.44,187.36,2.63]